bitfinex/quotes_SOLUSD_20241102
["timestamp","ask_amount","ask_price","bid_price","bid_amount"]
[1730561595417,11.45611524,163.77,163.76,43.776884]
[1730561596057,11.45611524,163.78,163.77,43.776884]
[1730561596435,11.45611524,163.78,163.77,49.882984]
[1730561597539,11.45611524,163.78,163.76,15.2658]
[1730561597739,57.2805762,163.77,163.74,43.776884]
[1730561598051,11.45611524,163.75,163.74,20.0]
[1730561598434,11.45611524,163.75,163.74,26.1072]
[1730561599333,11.45611524,163.75,163.74,49.884084]
[1730561601026,11.45611524,163.75,163.74,20.0]
[1730561601236,11.45611524,163.75,163.73,15.2687]
[1730561601440,11.45611524,163.74,163.73,15.2687]
[1730561602131,11.45611524,163.74,163.73,21.3763]
[1730561602732,11.45611524,163.74,163.7,30.5418]
[1730561603010,11.45611524,163.73,163.71,43.776884]
[1730561603357,11.45611524,163.73,163.71,50.13900342]
[1730561604138,11.45611524,163.73,163.72,49.884784]
[1730561608348,11.45611524,163.74,163.73,43.776884]
[1730561610061,11.45611524,163.74,163.73,49.884484]
[1730561611450,11.45611524,163.75,163.73,65.153484]
[1730561613253,11.45611524,163.76,163.74,0.25098]
[1730561614560,11.45611524,163.77,163.76,20.12549]
[1730561614740,11.45611524,163.77,163.76,43.902374]
[1730561615660,11.45611524,163.77,163.76,50.008774]
[1730561616051,11.45611524,163.78,163.77,23.902374]
[1730561616250,11.45611524,163.79,163.78,43.776884]
[1730561618655,11.45611524,163.8,163.79,43.776884]
[1730561620563,11.45611524,163.8,163.79,49.882184]
[1730561624148,11.45611524,163.8,163.78,21.3697]
[1730561624564,11.45611524,163.79,163.78,21.3697]
[1730561625157,11.45611524,163.79,163.75,21.3739]
[1730561625356,11.45611524,163.76,163.75,65.401764]
[1730561629161,11.45611524,163.76,163.75,65.401764]
[1730561636080,45.92446096,163.84,163.76,50.008774]
[1730561636081,11.45611524,163.77,163.76,50.008774]
[1730561636284,11.45611524,163.77,163.76,50.134264]
[1730561640356,11.45611524,163.8,163.77,0.12549]
[1730561640560,11.45611524,163.8,163.78,0.12549]
[1730561640767,11.45611524,163.79,163.78,0.12549]
[1730561641562,11.45611524,163.79,163.78,50.133564]
[1730561641969,11.45611524,163.79,163.78,49.882584]
[1730561643083,11.45611524,163.79,163.77,20.0]
[1730561643386,11.45611524,163.78,163.77,43.776884]
[1730561644765,11.45611524,163.78,163.77,49.882984]
[1730561645375,11.45611524,163.78,163.77,20.0]
[1730561645668,11.45611524,163.78,163.77,26.1061]
[1730561645879,11.45611524,163.78,163.77,49.882984]
[1730561646108,11.45611524,163.78,163.77,50.008474]
[1730561646385,11.45611524,163.78,163.77,50.259454]
[1730561646569,11.45611524,163.79,163.78,24.153354]
[1730561646762,11.45611524,163.79,163.78,50.259054]
[1730561650181,11.45611524,163.83,163.82,65.392664]
[1730561650896,11.45611524,163.83,163.82,65.518154]
[1730561651067,11.45611524,163.84,163.83,44.153354]
[1730561652492,11.45611524,163.84,163.83,50.257154]
[1730561655501,11.45611524,163.84,163.83,50.131664]
[1730561655996,11.45611524,163.84,163.83,50.257154]
[1730561659574,11.45611524,163.84,163.83,50.006174]
[1730561663386,57.2805762,163.84,163.82,15.2606]
[1730561663586,11.45611524,163.83,163.82,15.2606]
[1730561664104,11.45611524,163.83,163.78,51.8987]
[1730561664399,11.45611524,163.82,163.78,51.8987]
[1730561664573,11.45611524,163.79,163.78,21.37]
[1730561666195,11.45611524,163.79,163.78,41.37]
[1730561667301,11.45611524,163.79,163.78,65.146884]
[1730561667876,11.45611524,163.79,163.78,21.37]
[1730561668189,11.45611524,163.79,163.78,45.146884]
[1730561668889,11.45611524,163.79,163.75,1.06043595]
[1730561669195,6.3042,163.82,163.76,6.1064]
[1730561669399,0.1,163.81,163.76,6.1064]
[1730561669982,0.2,163.81,163.76,6.1064]
[1730561670396,11.45611524,163.77,163.76,6.1064]
[1730561671208,11.45611524,163.77,163.75,20.0]
[1730561671505,11.45611524,163.76,163.75,20.0]
[1730561671899,11.45611524,163.76,163.75,43.776884]
[1730561672681,11.45611524,163.76,163.75,49.883684]
[1730561673298,11.45611524,163.76,163.75,50.260154]
[1730561678901,11.45611524,163.76,163.75,26.1068]
[1730561679207,11.45611524,163.76,163.75,6.1068]
[1730561680308,11.45611524,163.76,163.75,29.883684]
[1730561681006,11.45611524,163.76,163.75,30.260154]
[1730561681394,11.45611524,163.76,163.75,29.883684]
[1730561681600,11.45611524,163.76,163.75,49.883684]
[1730561683099,11.45611524,163.76,163.75,50.260154]
[1730561691025,11.45611524,163.76,163.75,49.883684]
[1730561691226,57.2805762,163.76,163.75,49.883684]
[1730561691803,57.2805762,163.76,163.75,29.883684]
[1730561693113,57.2805762,163.76,163.75,49.883684]
[1730561695941,57.2805762,163.76,163.75,20.0]
[1730561696616,57.2805762,163.76,163.74,20.0]
[1730561696815,11.45611524,163.75,163.74,20.0]
[1730561697017,11.45611524,163.75,163.72,6.1079]
[1730561697225,11.45611524,163.73,163.72,29.884784]
[1730561698321,11.45611524,163.73,163.72,49.884784]
[1730561703424,11.45611524,163.73,163.72,43.776884]
[1730561703634,11.45611524,163.73,163.72,20.0]
[1730561704145,11.45611524,163.73,163.72,26.1079]
[1730561705943,11.45611524,163.73,163.71,32.32678879]
[1730561706239,11.45611524,163.72,163.71,52.32678879]
[1730561706552,11.45611524,163.72,163.71,21.3786]
[1730561707240,11.45611524,163.72,163.68,45.410964]
[1730561707435,11.45611524,163.69,163.68,45.159984]
[1730561707654,57.2805762,163.69,163.68,45.159984]
[1730561707951,57.2805762,163.69,163.68,15.2737]
[1730561708140,57.2805762,163.69,163.65,1.06139309]
[1730561708141,57.2805762,163.69,163.65,16.33749309]
[1730561708456,11.45611524,163.66,163.65,15.2761]
[1730561709353,11.45611524,163.66,163.65,39.052984]
[1730561710260,11.45611524,163.66,163.62,6.36214302]
[1730561710437,15.4551,163.67,163.62,6.1116]
[1730561710438,11.45611524,163.63,163.62,6.1116]
[1730561710632,11.45611524,163.63,163.61,21.3913]
[1730561710956,11.45611524,163.62,163.61,21.3913]
[1730561711453,11.45611524,163.62,163.57,21.3974]
[1730561711655,11.45611524,163.59,163.58,0.12549]
[1730561712032,11.45611524,163.59,163.58,44.153354]
[1730561712554,11.45611524,163.59,163.58,26.1132]
[1730561713455,11.45611524,163.59,163.58,26.23869]
[1730561713853,11.45611524,163.59,163.58,50.266554]
[1730561714162,11.45611524,163.59,163.58,29.890084]
[1730561716039,11.45611524,163.59,163.57,15.2839]
[1730561716253,11.45611524,163.58,163.55,21.3998]
[1730561716454,45.82446096,163.6,163.55,21.3998]
[1730561716455,11.45611524,163.56,163.55,21.3998]
[1730561717354,11.45611524,163.56,163.55,41.3998]
[1730561717861,11.45611524,163.56,163.55,65.176684]
[1730561719084,11.45611524,163.56,163.55,35.2858]
[1730561719554,11.45611524,163.56,163.55,15.2858]
[1730561719858,11.45611524,163.56,163.54,17.07407634]
[1730561719859,11.45611524,163.56,163.54,17.07427634]
[1730561720072,6.213,163.59,163.54,17.07427634]
[1730561720073,11.45611524,163.55,163.54,17.07427634]
[1730561725265,11.45611524,163.55,163.54,17.07427634]
[1730561726884,11.45611524,163.55,163.51,21.4046]
[1730561727053,0.1,163.58,163.52,43.776884]
[1730561727253,11.45611524,163.53,163.52,43.776884]
[1730561728660,11.45611524,163.53,163.52,49.892284]
[1730561731179,57.2805762,163.53,163.51,15.2888]
[1730561731359,57.2805762,163.52,163.51,15.2888]
[1730561731681,57.2805762,163.52,163.49,6.1165]
[1730561731857,11.45611524,163.5,163.49,6.1165]
[1730561732484,11.45611524,163.5,163.48,21.4089]
[1730561732786,11.45611524,163.49,163.48,21.4089]
[1730561732956,11.45611524,163.49,163.48,65.562254]
[1730561735181,11.45611524,163.49,163.48,41.4089]
[1730561735761,11.45611524,163.49,163.48,21.4089]
[1730561736767,11.45611524,163.49,163.48,65.185784]
[1730561737270,11.45611524,163.51,163.5,0.37647]
[1730561737466,15.9064,163.58,163.5,0.37647]
[1730561737467,11.45611524,163.52,163.5,0.37647]
[1730561737658,11.45611524,163.51,163.5,0.37647]
[1730561737980,11.45611524,163.52,163.5,0.37647]
[1730561738282,11.45611524,163.51,163.5,0.37647]
[1730561738481,11.45611524,163.51,163.5,6.49267]
[1730561738685,11.45611524,163.53,163.5,65.560054]
[1730561738860,11.45611524,163.55,163.52,0.37647]
[1730561740080,11.45611524,163.54,163.53,65.556054]
[1730561741905,11.45611524,163.55,163.54,43.776884]
[1730561743566,11.45611524,163.55,163.54,49.891584]
[1730561743767,11.45611524,163.55,163.54,26.1147]
[1730561743980,11.45611524,163.55,163.53,21.4027]
[1730561744290,11.45611524,163.54,163.52,6.1151]
[1730561744485,11.45611524,163.53,163.52,6.1151]
[1730561745369,11.45611524,163.53,163.48,30.5847]
[1730561745570,11.45611524,163.5,163.49,20.0]
[1730561746181,11.45611524,163.5,163.49,43.776884]
[1730561746588,11.45611524,163.5,163.49,49.893384]
[1730561748373,0.1,163.56,163.49,49.893384]
[1730561748374,11.45611524,163.51,163.5,23.776884]
[1730561748674,11.45611524,163.51,163.5,43.776884]
[1730561751088,11.45611524,163.51,163.5,49.893084]
[1730561755672,11.45611524,163.52,163.5,49.893084]
[1730561755877,11.45611524,163.52,163.51,20.0]
[1730561756100,11.45611524,163.52,163.51,43.776884]
[1730561757992,11.45611524,163.52,163.51,49.892684]
[1730561758786,11.45611524,163.52,163.51,26.1158]
[1730561759087,57.2805762,163.52,163.5,21.4066]
[1730561759291,11.45611524,163.51,163.5,21.4066]
[1730561760084,11.45611524,163.51,163.49,20.0]
[1730561760295,11.45611524,163.5,163.49,43.776884]
[1730561762495,11.45611524,163.5,163.49,49.893384]
[1730561763298,11.45611524,163.5,163.47,6.1173]
[1730561763509,11.45611524,163.48,163.47,6.1173]
[1730561764417,11.45611524,163.48,163.46,21.4119]
[1730561764610,45.92446096,163.52,163.46,21.4119]
[1730561764611,11.45611524,163.47,163.46,65.188784]
[1730561766897,11.45611524,163.49,163.47,44.153354]
[1730561767203,11.45611524,163.51,163.47,44.153354]
[1730561768613,11.45611524,163.51,163.48,21.4092]
[1730561768811,11.45611524,163.51,163.5,20.0]
[1730561769307,11.45611524,163.51,163.5,43.776884]
[1730561770417,15.3462,163.56,163.5,43.776884]
[1730561770418,11.45611524,163.52,163.51,23.776884]
[1730561770709,11.45611524,163.52,163.51,43.776884]
[1730561772699,11.45611524,163.52,163.51,49.892684]
[1730561773821,57.2805762,163.52,163.5,15.2905]
[1730561773992,11.45611524,163.51,163.5,15.2905]
[1730561774193,11.45611524,163.51,163.5,21.4067]
[1730561774488,11.45611524,163.51,163.5,15.2905]
[1730561774691,11.45611524,163.51,163.5,21.4067]
[1730561776309,11.45611524,163.51,163.46,30.5885]
[1730561776310,11.45611524,163.51,163.47,0.12549]
[1730561776607,11.45611524,163.48,163.47,44.153354]
[1730561778524,11.45611524,163.49,163.47,50.270654]
[1730561778813,11.45611524,163.5,163.47,96.150554]
[1730561779007,11.45611524,163.51,163.47,96.150554]
[1730561780315,11.45611524,163.5,163.47,96.150554]
[1730561780700,11.45611524,163.51,163.47,96.150554]
[1730561781312,11.45611524,163.5,163.47,96.150554]
[1730561782518,11.45611524,163.56,163.5,44.153354]
[1730561782722,11.45611524,163.56,163.52,44.153354]
[1730561783598,11.45611524,163.56,163.55,43.776884]
[1730561784406,11.45611524,163.57,163.56,43.776884]
[1730561785618,11.45611524,163.58,163.57,43.776884]
[1730561786618,11.45611524,163.6,163.59,43.776884]
[1730561786801,11.45611524,163.61,163.59,43.776884]
[1730561787412,11.45611524,163.61,163.6,43.776884]
[1730561788218,11.45611524,163.61,163.6,49.889284]
[1730561788401,11.45611524,163.61,163.59,15.2816]
[1730561788596,11.45611524,163.6,163.59,41.3943]
[1730561789718,11.45611524,163.61,163.6,23.776884]
[1730561790101,11.45611524,163.61,163.6,29.889284]
[1730561790495,11.45611524,163.61,163.6,6.1124]
[1730561791216,57.2805762,163.61,163.54,20.12549]
[1730561791431,11.45611524,163.56,163.55,35.285]
[1730561791727,11.45611524,163.57,163.56,20.0]
[1730561791901,11.45611524,163.58,163.56,20.0]
[1730561792104,11.45611524,163.58,163.57,26.1135]
[1730561793725,11.45611524,163.59,163.57,65.174284]
[1730561794208,11.45611524,163.59,163.58,23.776884]
[1730561794730,11.45611524,163.59,163.58,43.776884]
[1730561795320,11.45611524,163.6,163.58,49.890084]
[1730561795517,11.45611524,163.6,163.59,20.0]
[1730561797411,11.45611524,163.6,163.59,26.1128]
[1730561797605,11.45611524,163.6,163.58,39.059884]
[1730561797606,22.91223048,163.6,163.58,15.283]
[1730561797828,11.45611524,163.59,163.58,15.283]
[1730561798203,11.45611524,163.59,163.54,0.12549]
[1730561798526,11.45611524,163.55,163.54,30.142564]
[1730561798829,11.45611524,163.55,163.54,6.1147]
[1730561799424,11.45611524,163.55,163.53,15.2872]
[1730561799728,11.45611524,163.54,163.53,15.2872]
[1730561799916,11.45611524,163.54,163.53,39.064084]
[1730561800228,11.45611524,163.54,163.53,59.064084]
[1730561800934,11.45611524,163.54,163.53,65.179084]
[1730561801811,11.45611524,163.55,163.54,43.776884]
[1730561802136,11.45611524,163.57,163.54,43.776884]
[1730561802312,11.45611524,163.59,163.55,0.37647]
[1730561802834,11.45611524,163.58,163.55,0.37647]
[1730561803127,15.7367,163.63,163.55,0.37647]
[1730561803128,11.45611524,163.59,163.55,0.37647]
[1730561804104,11.45611524,163.58,163.57,43.776884]
[1730561805323,11.45611524,163.58,163.57,49.890384]
[1730561809230,11.45611524,163.59,163.57,65.174284]
[1730561809456,11.45611524,163.61,163.57,95.742184]
[1730561809643,11.45611524,163.61,163.58,0.37647]
[1730561809935,15.6996,163.67,163.58,0.37647]
[1730561809936,11.45611524,163.62,163.58,0.37647]
[1730561810320,11.45611524,163.61,163.58,0.37647]
[1730561810837,11.45611524,163.61,163.6,43.776884]
[1730561812427,11.45611524,163.61,163.6,49.889284]
[1730561824541,11.45611524,163.61,163.59,15.2821]
[1730561824840,57.2805762,163.6,163.56,15.2846]
[1730561825043,11.45611524,163.57,163.56,15.2846]
[1730561825726,11.45611524,163.57,163.54,0.12549]
[1730561825926,11.45611524,163.56,163.55,23.776884]
[1730561826125,11.45611524,163.56,163.55,43.776884]
[1730561826326,11.45611524,163.56,163.53,21.4027]
[1730561826542,11.45611524,163.54,163.53,21.4027]
[1730561827344,11.45611524,163.54,163.53,15.2877]
[1730561827722,11.45611524,163.54,163.51,30.5783]
[1730561827924,11.45611524,163.52,163.48,21.4092]
[1730561828127,11.45611524,163.49,163.48,21.4092]
[1730561828329,11.45611524,163.49,163.48,45.562554]
[1730561828533,11.45611524,163.49,163.48,21.4092]
[1730561829231,11.45611524,163.49,163.48,15.2923]
[1730561829940,11.45611524,163.49,163.44,6.1184]
[1730561830247,11.45611524,163.45,163.44,6.1184]
[1730561830454,11.45611524,163.45,163.43,26.26084594]
[1730561830455,35.96292456,163.45,163.43,15.2966]
[1730561830623,35.96292456,163.44,163.43,15.2966]
[1730561831241,35.96292456,163.44,163.43,21.4154]
[1730561831553,35.96292456,163.44,163.43,41.4154]
[1730561831749,17.98146228,163.44,163.43,41.4154]
[1730561833445,17.98146228,163.45,163.43,65.192284]
[1730561833647,17.98146228,163.46,163.44,43.776884]
[1730561833838,17.98146228,163.46,163.44,20.0]
[1730561834755,17.98146228,163.45,163.44,49.895284]
[1730561835532,17.98146228,163.46,163.44,49.895284]
[1730561835841,17.98146228,163.46,163.44,65.191384]
[1730561836049,17.98146228,163.47,163.45,43.776884]
[1730561836351,17.98146228,163.47,163.46,20.0]
[1730561836931,17.98146228,163.47,163.46,26.1177]
[1730561839653,17.98146228,163.47,163.46,49.894584]
[1730561839847,17.98146228,163.48,163.46,65.188784]
[1730561842364,17.98146228,163.51,163.5,20.0]
[1730561842736,17.98146228,163.53,163.5,20.0]
[1730561842943,17.98146228,163.54,163.51,23.776884]
[1730561843158,17.98146228,163.55,163.53,6.115]
[1730561843454,17.98146228,163.56,163.54,20.0]
[1730561844355,17.98146228,163.57,163.55,23.776884]
[1730561844570,17.98146228,163.59,163.57,23.776884]
[1730561844765,17.98146228,163.6,163.58,20.0]
[1730561844941,17.98146228,163.61,163.58,20.0]
[1730561845355,17.98146228,163.6,163.59,41.3949]
[1730561847560,17.98146228,163.65,163.6,44.153354]
[1730561847741,17.98146228,163.68,163.64,0.25098]
[1730561847935,17.98146228,163.68,163.66,23.776884]
[1730561848961,17.98146228,163.68,163.67,29.886684]
[1730561849651,17.98146228,163.68,163.67,45.161284]
[1730561851169,17.98146228,163.68,163.67,15.2746]
[1730561851855,17.98146228,163.68,163.67,21.3844]
[1730561852865,17.98146228,163.68,163.67,15.2746]
[1730561853849,35.96292456,163.68,163.6,45.421364]
[1730561854060,17.98146228,163.63,163.6,45.170384]
[1730561854447,17.98146228,163.63,163.61,0.12549]
[1730561854851,17.98146228,163.62,163.61,6.23749]
[1730561855044,17.98146228,163.62,163.61,50.014374]
[1730561855263,17.98146228,163.62,163.61,50.265354]
[1730561855673,17.98146228,163.62,163.61,6.23749]
[1730561855877,17.98146228,163.62,163.6,15.2811]
[1730561856041,17.98146228,163.61,163.6,15.2811]
[1730561856373,17.98146228,163.61,163.6,21.3935]
[1730561857062,17.98146228,163.61,163.57,0.12549]
[1730561857263,17.98146228,163.59,163.57,20.12549]
[1730561857570,17.98146228,163.59,163.58,43.776884]
[1730561858173,17.98146228,163.59,163.58,49.890084]
[1730561860049,17.98146228,163.59,163.58,20.0]
[1730561860263,17.98146228,163.59,163.58,43.776884]
[1730561861772,17.98146228,163.59,163.58,49.890084]
[1730561863747,17.98146228,163.59,163.58,26.1132]
[1730561868488,17.98146228,163.59,163.58,49.890084]
[1730561870772,17.98146228,163.59,163.58,6.1132]
[1730561871790,17.98146228,163.59,163.54,30.5716]
[1730561872075,17.98146228,163.56,163.55,43.776884]
[1730561873390,17.98146228,163.56,163.55,49.891184]
[1730561873567,17.98146228,163.56,163.55,50.267654]
[1730561873771,22.3525,163.66,163.56,0.37647]
[1730561873772,17.98146228,163.59,163.56,0.37647]
[1730561874682,17.98146228,163.58,163.56,0.37647]
[1730561874872,28.5628,163.66,163.56,0.37647]
[1730561874873,17.98146228,163.57,163.56,0.37647]
[1730561875268,17.98146228,163.58,163.57,65.550754]
[1730561877177,17.98146228,163.6,163.58,43.776884]
[1730561879496,17.98146228,163.6,163.59,49.889684]
[1730561880969,17.98146228,163.6,163.59,26.1128]
[1730561881369,17.98146228,163.6,163.59,49.889684]
[1730561882377,17.98146228,163.6,163.59,26.1128]
[1730561882686,35.96292456,163.6,163.58,26.1132]
[1730561882891,17.98146228,163.59,163.57,21.3973]
[1730561883074,17.98146228,163.58,163.55,30.5716]
[1730561883386,17.98146228,163.56,163.55,30.5716]
[1730561883803,17.98146228,163.57,163.56,23.776884]
[1730561884097,17.98146228,163.57,163.56,43.776884]
[1730561884790,17.98146228,163.57,163.56,49.890784]
[1730561887479,17.98146228,163.57,163.54,21.4014]
[1730561887787,16.4879,163.59,163.54,21.4014]
[1730561887788,17.98146228,163.55,163.54,21.4014]
[1730561888382,17.98146228,163.55,163.5,31.643029]
[1730561888575,0.1,163.57,163.51,21.4048]
[1730561888576,0.2,163.57,163.51,21.4048]
[1730561888780,17.98146228,163.52,163.51,21.4048]
[1730561889293,17.98146228,163.52,163.51,15.2893]
[1730561889694,17.98146228,163.52,163.51,59.066184]
[1730561889991,17.98146228,163.53,163.51,59.066184]
[1730561890298,17.98146228,163.53,163.52,43.776884]
[1730561891385,17.98146228,163.53,163.52,49.892284]
[1730561891694,17.98146228,163.53,163.52,50.268754]
[1730561892020,17.98146228,163.55,163.54,43.776884]
[1730561892586,11.48758123,163.55,163.54,43.776884]
[1730561892971,11.48758123,163.55,163.54,49.891584]
[1730561897096,11.48758123,163.55,163.52,21.4037]
[1730561897297,11.48758123,163.53,163.52,21.4037]
[1730561898804,11.48758123,163.53,163.5,30.5806]
[1730561898981,11.48758123,163.51,163.5,50.5806]
[1730561899905,11.48758123,163.51,163.5,20.0]
[1730561900491,17.96453896,163.51,163.5,20.0]
[1730561900686,17.96453896,163.51,163.5,26.1162]
[1730561902409,17.96453896,163.51,163.5,49.893084]
[1730561903289,17.96453896,163.52,163.51,43.776884]
[1730561903492,17.96453896,163.53,163.52,43.776884]
[1730561904580,17.96453896,163.53,163.52,49.892284]
[1730561907901,17.96453896,163.54,163.53,43.776884]
[1730561908307,17.96453896,163.56,163.53,44.153354]
[1730561908505,17.96453896,163.56,163.55,43.776884]
[1730561908694,17.96453896,163.57,163.55,20.0]
[1730561909213,6.6017,163.61,163.55,20.0]
[1730561909214,17.96453896,163.56,163.55,20.0]
[1730561909403,17.96453896,163.56,163.55,43.776884]
[1730561909796,21.1813,163.63,163.55,43.776884]
[1730561909797,17.96453896,163.57,163.56,43.776884]
[1730561910107,15.0699,163.63,163.56,49.890784]
[1730561910108,17.96453896,163.58,163.56,49.890784]
[1730561910312,17.96453896,163.58,163.57,20.0]
[1730561912019,17.96453896,163.58,163.57,26.1135]
[1730561913811,17.96453896,163.58,163.57,6.1135]
[1730561917105,17.96453896,163.58,163.56,21.3988]
[1730561917308,17.96453896,163.57,163.56,41.3988]
[1730561920106,17.96453896,163.57,163.56,41.3988]
[1730561920606,11.48859872,163.57,163.56,15.2849]
[1730561921023,11.48859872,163.57,163.53,15.2873]
[1730561921324,11.48859872,163.54,163.53,39.064184]
[1730561922309,11.48859872,163.54,163.53,59.064184]
[1730561922528,11.48859872,163.54,163.53,65.179184]
[1730561923620,11.48859872,163.57,163.54,44.153354]
[1730561925823,45.95439488,163.6,163.56,43.776884]
[1730561926128,11.48859872,163.57,163.56,43.776884]
[1730561926422,11.48859872,163.57,163.56,20.0]
[1730561926624,11.48859872,163.57,163.55,21.4001]
[1730561926831,11.48859872,163.56,163.55,21.4001]
[1730561927824,11.48859872,163.56,163.53,30.5754]
[1730561928329,11.48859872,163.56,163.54,43.776884]
[1730561929545,11.48859872,163.56,163.55,49.891184]
[1730561930416,11.48859872,163.56,163.55,65.176984]
[1730561930806,11.48859872,163.56,163.55,21.4001]
[1730561931627,11.48859872,163.56,163.52,41.4039]
[1730561931818,11.48859872,163.53,163.52,21.4039]
[1730561932225,11.48859872,163.53,163.52,15.2885]
[1730561932409,17.95849006,163.53,163.52,21.4039]
[1730561932804,17.95849006,163.53,163.5,30.581]
[1730561933025,17.95849006,163.51,163.5,30.581]
[1730561933215,17.95849006,163.51,163.5,74.357884]
[1730561934019,17.95849006,163.51,163.5,80.474084]
[1730561935052,15.4705,163.57,163.5,80.474084]
[1730561935053,17.95849006,163.52,163.5,80.474084]
[1730561935217,17.95849006,163.52,163.51,43.776884]
[1730561936235,17.95849006,163.52,163.51,49.892684]
[1730561937735,17.95849006,163.53,163.51,65.182184]
[1730561939833,17.95849006,163.52,163.51,65.307674]
[1730561940138,17.95849006,163.52,163.51,65.558654]
[1730561940517,17.95849006,163.52,163.51,65.182184]
[1730561940725,17.95849006,163.52,163.51,21.4053]
[1730561941436,35.91698012,163.52,163.49,27.77489916]
[1730561941638,17.95849006,163.5,163.49,21.4076]
[1730561941831,17.95849006,163.5,163.49,41.4076]
[1730561943617,17.95849006,163.51,163.5,20.0]
[1730561944816,17.95849006,163.51,163.5,26.1162]
[1730561945733,17.95849006,163.51,163.5,49.893084]
[1730561949325,17.95849006,163.51,163.5,50.269554]
[1730561954435,11.49335902,163.51,163.5,50.269554]
[1730561954620,11.49335902,163.51,163.5,65.560054]
[1730561954828,11.49335902,163.52,163.51,23.776884]
[1730561955025,11.49335902,163.52,163.51,43.776884]
[1730561955532,11.49335902,163.52,163.51,49.892684]
[1730561957450,11.49335902,163.52,163.51,26.1158]
[1730561959951,57.4667951,163.52,163.5,15.2905]
[1730561960152,11.49335902,163.51,163.5,21.4067]
[1730561961750,11.49335902,163.51,163.48,23.776884]
[1730561961947,11.49335902,163.49,163.48,23.776884]
[1730561962147,11.49335902,163.49,163.48,43.776884]
[1730561962734,11.49335902,163.49,163.48,49.893784]
[1730561965454,11.49335902,163.49,163.48,6.1169]
[1730561965637,11.49335902,163.49,163.48,29.893784]
[1730561967249,11.49335902,163.49,163.48,6.1169]
[1730561968051,11.49335902,163.49,163.47,51.9969]
[1730561968239,11.49335902,163.48,163.47,95.773784]
[1730561969036,11.49335902,163.5,163.48,43.776884]
[1730561969537,11.49335902,163.51,163.49,0.37647]
[1730561970144,11.49335902,163.52,163.51,43.776884]
[1730561972349,11.49335902,163.52,163.51,49.892684]
[1730561974250,57.4667951,163.52,163.51,6.1158]
[1730561975843,11.49335902,163.52,163.51,6.1158]
[1730561976261,11.49335902,163.52,163.49,20.0]
[1730561976465,11.49335902,163.5,163.49,20.0]
[1730561976760,11.49335902,163.5,163.49,43.776884]
[1730561977266,11.49335902,163.5,163.49,49.893384]
[1730561977861,15.3705,163.57,163.49,49.893384]
[1730561977862,11.49335902,163.51,163.5,23.776884]
[1730561979765,11.49335902,163.53,163.52,43.776884]
[1730561980646,11.49335902,163.54,163.53,20.0]
[1730561981450,11.49335902,163.54,163.53,26.115]
[1730561984340,11.49335902,163.54,163.53,6.115]
[1730561991972,57.4667951,163.54,163.51,21.4052]
[1730561992156,57.4667951,163.52,163.51,21.4052]
[1730561992964,57.4667951,163.52,163.51,15.2895]
[1730561993566,11.49335902,163.52,163.51,15.2895]
[1730561998682,57.4667951,163.52,163.49,6.1165]
[1730561998882,11.49335902,163.5,163.49,6.1165]
[1730561999068,11.49335902,163.5,163.49,49.893384]
[1730561999273,11.49335902,163.5,163.49,65.184784]
[1730562006268,11.49335902,163.5,163.49,21.4079]
[1730562006679,11.49335902,163.5,163.49,41.4079]
[1730562007864,11.49335902,163.52,163.51,0.12549]
[1730562008065,11.49335902,163.53,163.51,0.37647]
[1730562009170,11.49335902,163.52,163.51,0.37647]
[1730562010185,11.49335902,163.52,163.51,50.269154]
[1730562011483,11.49335902,163.52,163.51,26.1158]
[1730562014078,11.49335902,163.52,163.51,49.892684]
[1730562014565,11.49335902,163.54,163.52,43.776884]
[1730562015475,11.49335902,163.54,163.53,49.891884]
[1730562018082,11.49335902,163.54,163.53,29.891884]
[1730562018391,11.49335902,163.54,163.52,6.1154]
[1730562018581,11.49335902,163.53,163.51,15.2895]
[1730562018769,11.49335902,163.52,163.51,21.4052]
[1730562019599,11.49335902,163.52,163.49,30.5829]
[1730562019788,6.3139,163.57,163.5,43.776884]
[1730562020086,11.49335902,163.51,163.49,20.0]
[1730562020283,11.49335902,163.5,163.49,20.0]
[1730562021070,11.49335902,163.5,163.49,43.776884]
[1730562021293,11.49335902,163.5,163.49,49.893384]
[1730562029879,11.49335902,163.5,163.49,6.1165]